lending/lending_fUSD_20260222
["ID","MTS","AMOUNT","RATE_DAILY","PERIOD"]
[406353387,1771783838674,-500.0,0.00016436,2]
[406353388,1771783838688,-519.42,0.00016436,2]
[406353389,1771783838698,-500.0,0.00016436,2]
[406353390,1771783838707,-500.0,0.00016436,2]
[406353391,1771783838717,-525.13346204,0.00016436,2]
[406353392,1771783838727,-500.0,0.00016436,2]
[406353393,1771783838736,-351.64176428,0.00016436,2]
[406353394,1771783838746,-500.0,0.00016436,2]
[406353395,1771783838755,-500.0,0.00016436,2]
[406353396,1771783838765,-500.0,0.00016436,2]
[406353397,1771783838775,-500.0,0.00016436,2]
[406353398,1771783838785,-500.0,0.00016436,2]
[406353399,1771783838794,-500.0,0.00016436,2]
[406353400,1771783838803,-500.0,0.00016436,2]
[406353401,1771783838813,-500.0,0.00016436,2]
[406353402,1771783838823,-500.0,0.00016436,2]
[406353403,1771783838833,-500.0,0.00016436,2]
[406353404,1771783838842,-500.0,0.00016436,2]
[406353405,1771783838852,-500.0,0.00016436,2]
[406353406,1771783838862,-500.0,0.00016436,2]
[406353407,1771783838872,-500.0,0.00016436,2]
[406353408,1771783838882,-500.0,0.00016436,2]
[406353409,1771783838892,-500.0,0.00016436,2]
[406353410,1771783838902,-500.0,0.00016436,2]
[406353411,1771783838912,-500.0,0.00016436,2]
[406353412,1771783838922,-500.0,0.00016436,2]
[406353413,1771783838931,-500.0,0.00016436,2]
[406353414,1771783838942,-500.0,0.00016436,2]
[406353415,1771783838951,-500.0,0.00016436,2]
[406353416,1771783838963,-500.0,0.00016436,2]
[406353417,1771783838975,-500.0,0.00016436,2]
[406353418,1771783838986,-500.0,0.00016436,2]
[406353419,1771783838996,-500.0,0.00016436,2]
[406353420,1771783839006,-500.0,0.00016436,2]
[406353421,1771783839015,-500.0,0.00016436,2]
[406353422,1771783839025,-500.0,0.00016436,2]
[406353423,1771783839034,-171.15,0.00016436,2]
[406353424,1771783839044,-500.0,0.00016436,2]
[406353425,1771783839054,-500.0,0.00016436,2]
[406353426,1771783839064,-500.0,0.00016436,2]
[406353427,1771783839077,-500.0,0.00016436,2]
[406353428,1771783839269,-500.0,0.00016436,2]
[406353429,1771783839279,-500.0,0.00016436,2]
[406353430,1771783839289,-500.0,0.00016436,2]
[406353431,1771783839300,-500.0,0.00016436,2]
[406353432,1771783839311,-500.0,0.00016436,2]
[406353433,1771783839323,-500.0,0.00016436,2]
[406353434,1771783839333,-500.0,0.00016436,2]
[406353435,1771783839343,-500.0,0.00016436,2]
[406353436,1771783839354,-500.0,0.00016436,2]
[406353437,1771783839365,-500.0,0.00016436,2]
[406353438,1771783839375,-500.0,0.00016436,2]
[406353439,1771783839385,-500.0,0.00016436,2]
[406353440,1771783839397,-500.0,0.00016436,2]
[406353441,1771783839407,-530.92405592,0.00016436,2]
[406353442,1771783839418,-500.0,0.00016436,2]
[406353443,1771783839428,-500.0,0.00016436,2]
[406353444,1771783839438,-500.0,0.00016436,2]
[406353445,1771783839448,-500.0,0.00016436,2]
[406353446,1771783839458,-500.0,0.00016436,2]
[406353447,1771783839468,-507.64784502,0.00016436,2]
[406353448,1771783839478,-500.0,0.00016438,2]
[406353449,1771783839488,-224.55054318,0.00016458,2]
[406353450,1771783839497,-1925.88962731,0.00016559,2]
[406353451,1771783839507,-250.0,0.00016601,2]
[406353452,1771783839517,-300.0,0.00016601,2]
[406353453,1771783839526,-600.0,0.00016601,2]
[406353454,1771783839536,-6402.94925015,0.00016625,2]
[406353455,1771783839545,-611.33,0.00016639,2]
[406353456,1771783839555,-1319.7999339,0.00016693,2]
[406353457,1771783839564,-300.0,0.00016731,2]
[406353458,1771783839574,-195.0,0.00016731,2]
[406353459,1771783839583,-500.0,0.00016731,2]
[406353460,1771783839592,-250.0,0.00016731,2]
[406353461,1771783839603,-195.0,0.00016731,2]
[406353462,1771783839612,-168.08,0.00016763,2]
[406353463,1771783839621,-1925.88962731,0.00016782,2]
[406353464,1771783839630,-2857.5120048,0.0001681,2]
[406353465,1771783839640,-6402.94925015,0.00016838,2]
[406353466,1771783839648,-904.0,0.00016847,2]
[406353467,1771783839658,-250.0,0.00017006,2]
[406353468,1771783839667,-1925.88962731,0.00017006,2]
[406353469,1771783839676,-6402.94925015,0.0001705,2]
[406353470,1771783839685,-420.0,0.00017062,2]
[406353471,1771783839695,-420.0,0.00017062,2]
[406353472,1771783839704,-1319.7999339,0.00017095,2]
[406353473,1771783839713,-1680.0,0.00017148,2]
[406353474,1771783839723,-1925.88962731,0.00017229,2]
[406353475,1771783839732,-6402.94925015,0.00017263,2]
[406353476,1771783839741,-161.57,0.00017357,2]
[406353477,1771783839750,-1925.88962731,0.00017453,2]
[406353478,1771783839760,-6402.94925015,0.00017475,2]
[406353479,1771783839770,-1319.7999339,0.00017498,2]
[406353480,1771783839780,-636.48823945,0.00017573,2]
[406353481,1771783839791,-206.48976748,0.00017573,2]
[406353482,1771783839803,-501.62516482,0.00017573,2]
[406353484,1771783839813,-500.0,0.00017573,2]
[406353486,1771783839823,-500.0,0.00017573,2]
[406353488,1771783839832,-175.15043052,0.00017573,2]
[406353490,1771783839843,-168.08,0.00017638,2]
[406353492,1771783839852,-1925.88962731,0.00017676,2]
[406353493,1771783839863,-6402.94925015,0.00017688,2]
[406353494,1771783839872,-1129.19078665,0.00017808,2]
[406353495,1771783839883,-1129.19078665,0.00017808,2]
[406353496,1771783839892,-1129.19078665,0.00017808,2]
[406353497,1771783839902,-1129.19078665,0.00017808,2]
[406353498,1771783839912,-1129.19078665,0.00017808,2]
[406353499,1771783839921,-1129.19078665,0.00017808,2]
[406353500,1771783839931,-1129.19078665,0.00017808,2]
[406353501,1771783839940,-1129.19078665,0.00017808,2]
[406353502,1771783839949,-1129.19078665,0.00017808,2]
[406353503,1771783839958,-1129.19078665,0.00017808,2]
[406353504,1771783839971,-1129.19078665,0.00017808,2]
[406353505,1771783839981,-1129.19078665,0.00017808,2]
[406353506,1771783839990,-1129.19078665,0.00017808,2]
[406353507,1771783839999,-1129.19078665,0.00017808,2]
[406353508,1771783840008,-1129.19078665,0.00017808,2]
[406353509,1771783840017,-1129.19078665,0.00017808,2]
[406353510,1771783840026,-1129.19078665,0.00017808,2]
[406353511,1771783840035,-1129.19078665,0.00017808,2]
[406353512,1771783840044,-1204.47017243,0.00017808,2]
[406353513,1771783840053,-1204.47017243,0.00017808,2]
[406353514,1771783840062,-1204.47017243,0.00017808,2]
[406353515,1771783840071,-1204.47017243,0.00017808,2]
[406353516,1771783840081,-1204.47017243,0.00017808,2]
[406353517,1771783840090,-1204.47017243,0.00017808,2]
[406353518,1771783840099,-1204.47017243,0.00017808,2]
[406353519,1771783840108,-1204.47017243,0.00017808,2]
[406353520,1771783840117,-1204.47017243,0.00017808,2]
[406353521,1771783840127,-224017.3167248,0.0001783,2]
[406353522,1771783840136,-2800.840232,0.00017846,2]
[406353523,1771783840145,-6402.94925015,0.000179,2]
[406353524,1771783840164,-2200.0,0.000179,6]
[406353525,1771783840175,-1925.88962731,0.000179,2]
[406353526,1771783840187,-1319.7999339,0.000179,2]
[406353527,1771783840197,-15095.3765667,0.00017975,2]
[406353528,1771783840209,-226.73826614,0.00017982,2]
[406353529,1771783840220,-151.0,0.00017985,2]
[406353530,1771783840230,-493004.0085191,0.00017988,2]
[406353531,1771783840240,-10788.7758105,0.00017988,2]
[406353532,1771783840252,-151.0,0.00017997,2]
[406353533,1771783840263,-151.0,0.00017997,2]
[406353534,1771783840272,-151.0,0.00017997,2]
[406353535,1771783840282,-1132.67648034,0.00017999,5]
[406353536,1771783840292,-498254.62539809,0.00018,2]
[406353537,1771783840302,-1209626.64461179,0.00018,2]
[406353538,1771783840465,-307.92957538,0.00018,2]
[406353539,1771783840476,-3424.37572502,0.00018,2]
[406353540,1771783840487,-332.99999985,0.00018,2]
[406353541,1771783840503,-29194.0009153,0.00018,2]
[406353542,1771783840515,-754.07848955,0.00018,2]
[406353543,1771783840537,-1407152.6229181,0.00018,2]
[406353544,1771783840546,-1195.28363858,0.00018,2]
[406353545,1771783840556,-1001.3868342,0.00018,2]
[406353546,1771783840566,-151.0,0.00018,2]
[406353547,1771783840576,-151.0,0.00018,2]
[406353548,1771783840585,-151.0,0.00018,2]
[406353549,1771783840595,-204.837741,0.00018,2]
[406353550,1771783840604,-204.837741,0.00018,2]
[406353552,1771783840613,-204.837741,0.00018,2]
[406353553,1771783840622,-204.837741,0.00018,2]
[406353554,1771783840631,-151.0,0.00018,2]
[406353555,1771783840640,-160.949988,0.00018,2]
[406353556,1771783840650,-151.0,0.00018,2]
[406353557,1771783840659,-151.0,0.00018,2]
[406353559,1771783840668,-315.06112,0.00018,2]
[406353561,1771783840678,-315.06112,0.00018,2]
[406353562,1771783840687,-315.06112,0.00018,2]
[406353563,1771783840698,-315.06112,0.00018,2]
[406353564,1771783840707,-151.0,0.00018,2]
[406353565,1771783840716,-151.0,0.00018,2]
[406353566,1771783840725,-151.0,0.00018,2]
[406353567,1771783840735,-458.522782,0.00018,2]
[406353568,1771783840744,-458.522782,0.00018,2]
[406353569,1771783840753,-458.522782,0.00018,2]
[406353570,1771783840762,-458.522782,0.00018,2]
[406353571,1771783840771,-151.0,0.00018,2]
[406353572,1771783840781,-151.0,0.00018,2]
[406353573,1771783840790,-151.0,0.00018,2]
[406353574,1771783840800,-151.0,0.00018,2]
[406353575,1771783840809,-151.0,0.00018,2]
[406353576,1771783840819,-151.0,0.00018,2]
[406353577,1771783840829,-151.0,0.00018,2]
[406353578,1771783840839,-151.0,0.00018,2]
[406353579,1771783840848,-758.392741,0.00018,2]
[406353580,1771783840858,-758.392741,0.00018,2]
[406353581,1771783840867,-758.392741,0.00018,2]
[406353582,1771783840876,-758.392741,0.00018,2]
[406353583,1771783840886,-151.0,0.00018,2]
[406353584,1771783840896,-151.0,0.00018,2]
[406353585,1771783840905,-151.0,0.00018,2]
[406353586,1771783840915,-1000.0,0.00018121,2]
[406353587,1771783840924,-500.0,0.00018121,2]
[406353588,1771783840934,-1000.0,0.00018164,2]
[406353589,1771783840943,-1000.0,0.000182,2]
[406353590,1771783840953,-348.39439338,0.0001824,2]
[406353591,1771783840963,-182.06658955,0.0001824,2]
[406353592,1771783840976,-173.78509278,0.000184,3]
[406353593,1771783840985,-160.0,0.00018479,2]
[406353594,1771783840995,-173.78509278,0.00018479,2]
[406353595,1771783841004,-168.08,0.00018512,2]
[406353596,1771783841015,-587.0,0.00018662,2]
[406353597,1771783841025,-1500.0,0.00018668,2]
[406353598,1771783841034,-250.0,0.00018821,2]
[406353599,1771783841047,-2351.0,0.00018851,2]
[406353600,1771783841057,-840.0,0.00018951,2]
[406353601,1771783841067,-351.789837,0.00018968,7]
[406353602,1771783841077,-392.65378736,0.00019,2]
[406353603,1771783841086,-154.45264033,0.00019,2]
[406353604,1771783841095,-200.0,0.00019082,2]
[406353605,1771783841104,-160.9,0.00019097,2]
[406353606,1771783841114,-675.61068164,0.00019175,2]
[406353607,1771783841123,-1379.37432712,0.00019178,2]
[406353608,1771783841133,-151.0,0.00019178,2]
[406353609,1771783841142,-151.0,0.00019178,2]
[406353610,1771783841153,-151.0,0.00019178,2]
[406353611,1771783841163,-152.344841,0.00019178,2]
[406353612,1771783841174,-151.0,0.00019178,2]
[406353613,1771783841185,-151.0,0.00019178,2]
[406353614,1771783841195,-2012.36453981,0.00019216,2]
[406353615,1771783841205,-25887.961326,0.00019316,2]
[406353616,1771783841214,-4134.0427756,0.00019316,2]
[406353617,1771783841224,-940.2330119,0.00019375,2]
[406353618,1771783841233,-160.0,0.000195,7]
[406353619,1771783841244,-4939.40217074,0.000199,3]
[406353620,1771783841253,-1600.0,0.00019918,2]
[406353621,1771783841263,-153.26383928,0.0002,2]
[406353622,1771783841273,-2000.0,0.0002,2]
[406353623,1771783841282,-2000.0,0.0002001,2]
[406353624,1771783841291,-5776.3849565,0.00020011,2]
[406353625,1771783841302,-922.4296266,0.00020011,2]
[406353626,1771783841312,-2000.0,0.0002002,2]
[406353627,1771783841322,-2698.754019,0.0002003,2]
[406353628,1771783841331,-209.7943425,0.00020083,2]
[406353629,1771783841341,-1000.0,0.00020182,2]
[406353630,1771783841351,-823.0,0.00020412,2]
[406353631,1771783841360,-155.14,0.00020548,2]
[406353632,1771783841370,-3292.0,0.00020722,2]
[406353633,1771783841381,-1197.61315713,0.00021,2]
[406353634,1771783841391,-197.67601321,0.00021,2]
[406353635,1771783841401,-110391.87866356,0.00021,2]
[406353636,1771783841411,-587.78546519,0.00021,2]
[406353637,1771783841421,-102754.59836896,0.00021446,2]
[406353638,1771783841434,-962.79028977,0.00021446,2]
[406353651,1771783844053,-1112.81206496,0.00021446,2]
[406353652,1771783844091,-161.98428225,0.00021446,2]
[406353653,1771783844105,-722.8955016,0.00021446,2]
[406353684,1771784890541,150.0,0.00014807,2]
[406353690,1771784953500,225.145496,0.00014894,7]
[406353716,1771785032102,-420.08,0.00015027,2]
[406353717,1771785032113,-250.0,0.00015127,2]
[406353718,1771785032123,-195.0,0.00015227,2]
[406353719,1771785032132,-1600.0,0.00015428,2]
[406353720,1771785032142,-300.0,0.00015499,2]
[406353721,1771785032152,-644.07050627,0.000155,2]
[406353722,1771785032161,-1099.83327825,0.000155,2]
[406353723,1771785032171,-196.01854358,0.000155,2]
[406353724,1771785032180,-150.0,0.00015513,2]
[406353725,1771785032190,-200.03451288,0.00015568,2]
[406353726,1771785032200,-151.0,0.00015575,2]
[406353727,1771785032209,-151.0,0.00015575,2]
[406353728,1771785032219,-151.0,0.00015575,2]
[406353729,1771785032229,-1200.0,0.00015577,2]
[406353730,1771785032239,-300.0,0.00015577,2]
[406353731,1771785032249,-300.0,0.00015577,2]
[406353732,1771785032258,-661490.4943825,0.00015578,2]
[406353733,1771785032274,-4675.96642705,0.00015578,2]
[406353751,1771785038144,-2833833.53919045,0.00015578,2]
[406353752,1771785038155,-700.0,0.000156,5]
[406353753,1771785038165,-150.0,0.00015613,2]
[406353754,1771785038175,-150.0,0.00015613,2]
[406353755,1771785038185,-150.0,0.00015613,2]
[406353756,1771785038195,-150.0,0.00015668,2]
[406353757,1771785038205,-150.0,0.00015668,2]
[406353758,1771785038215,-727.0,0.0001567,2]
[406353759,1771785038225,-38670.44147377,0.00015678,2]
[406353760,1771785038234,-2500.0,0.00015688,2]
[406353761,1771785038243,-2047.96774201,0.00015688,2]
[406353762,1771785038253,-241.0,0.00015688,2]
[406353763,1771785038262,-1400.0,0.000157,5]
[406353764,1771785038272,-158.70315985,0.00015723,2]
[406353765,1771785038281,-150.0,0.00015723,2]
[406353766,1771785038291,-284.0,0.00015753,2]
[406353767,1771785038300,-661.89,0.00015778,3]
[406353768,1771785038310,-65558.0577,0.00015788,2]
[406353769,1771785038320,-718.8125,0.00015788,2]
[406353770,1771785038330,-150.0,0.00015788,2]
[406353773,1771785038528,-2200.0,0.000158,5]
[406353774,1771785038538,-150.99,0.00015838,2]
[406353775,1771785038548,-508.67,0.00015838,2]
[406353776,1771785038557,-9999.99,0.00015838,2]
[406353777,1771785038567,-999.99,0.00015838,2]
[406353778,1771785038576,-644.07050627,0.00015843,2]
[406353779,1771785038586,-3485.81,0.00015878,2]
[406353780,1771785038595,-9999.99,0.00015878,2]
[406353781,1771785038605,-150.99,0.00015885,2]
[406353782,1771785038614,-1092.10173587,0.00015887,5]
[406353783,1771785038624,-2956.179,0.00015887,2]
[406353784,1771785038633,-256.466,0.00015887,2]
[406353785,1771785038643,-500.0,0.00015887,2]
[406353786,1771785038653,-500.0,0.00015887,2]
[406353787,1771785038663,-500.0,0.00015887,2]
[406353788,1771785038672,-500.0,0.00015887,2]
[406353789,1771785038682,-500.0,0.00015887,2]
[406353790,1771785038691,-500.0,0.00015887,5]
[406353791,1771785038700,-10000.0,0.00015888,2]
[406353792,1771785038710,-589.11567123,0.00015888,2]
[406353793,1771785038719,-2900.0,0.000159,5]
[406353794,1771785038728,-2047.96774194,0.00015934,2]
[406353795,1771785038737,-1099.83327825,0.0001598,2]
[406353796,1771785038747,-556.75986941,0.00015982,2]
[406353797,1771785038756,-1132.67648034,0.00015987,5]
[406353798,1771785038765,-500.0,0.00015987,2]
[406353799,1771785038774,-500.0,0.00015987,2]
[406353800,1771785038784,-500.0,0.00015987,2]
[406353801,1771785038793,-500.0,0.00015987,2]
[406353802,1771785038803,-500.0,0.00015987,2]
[406353803,1771785038812,-500.0,0.00015987,2]
[406353804,1771785038821,-500.0,0.00015987,2]
[406353805,1771785038830,-500.0,0.00015987,2]
[406353806,1771785038839,-500.0,0.00015987,2]
[406353807,1771785038849,-500.0,0.00015987,2]
[406353808,1771785038858,-500.0,0.00015987,2]
[406353809,1771785038868,-171.15,0.00015987,2]
[406353810,1771785038877,-500.0,0.00015987,2]
[406353811,1771785038887,-500.0,0.00015987,2]
[406353812,1771785038896,-500.0,0.00015987,2]
[406353813,1771785038905,-500.0,0.00015987,2]
[406353814,1771785038914,-500.0,0.00015987,2]
[406353815,1771785038923,-500.0,0.00015987,2]
[406353816,1771785038933,-500.0,0.00015987,2]
[406353817,1771785038942,-500.0,0.00015987,2]
[406353818,1771785038951,-500.0,0.00015987,2]
[406353819,1771785038961,-500.0,0.00015987,2]
[406353820,1771785038970,-500.0,0.00015987,2]
[406353821,1771785038979,-500.0,0.00015987,2]
[406353822,1771785038989,-500.0,0.00015987,2]
[406353823,1771785038999,-500.0,0.00015987,2]
[406353824,1771785039008,-500.0,0.00015987,2]
[406353825,1771785039017,-500.0,0.00015987,2]
[406353826,1771785039027,-500.0,0.00015987,2]
[406353827,1771785039036,-500.0,0.00015987,2]
[406353828,1771785039046,-500.0,0.00015987,2]
[406353829,1771785039055,-500.0,0.00015987,2]
[406353830,1771785039064,-500.0,0.00015987,2]
[406353831,1771785039073,-500.0,0.00015987,2]
[406353832,1771785039082,-500.0,0.00015987,2]
[406353833,1771785039091,-500.0,0.00015987,2]
[406353834,1771785039100,-500.0,0.00015987,2]
[406353835,1771785039109,-500.0,0.00015987,2]
[406353836,1771785039119,-478.95705887,0.00015987,2]
[406353837,1771785039128,-500.0,0.00015987,2]
[406353838,1771785039137,-500.0,0.00015987,2]
[406353839,1771785039146,-348.96077263,0.00015987,2]
[406353840,1771785039156,-500.0,0.00015987,2]
[406353841,1771785039166,-500.0,0.00015987,2]
[406353842,1771785039176,-507.64784502,0.00015987,2]
[406353843,1771785039186,-500.0,0.00015987,2]
[406353844,1771785039196,-500.0,0.00015987,2]
[406353845,1771785039207,-500.0,0.00015987,2]
[406353846,1771785039216,-269.30860549,0.00015987,2]
[406353847,1771785039225,-500.0,0.00015987,2]
[406353848,1771785039235,-500.0,0.00015987,2]
[406353849,1771785039245,-500.0,0.00015987,2]
[406353850,1771785039254,-500.0,0.00015987,2]
[406353851,1771785039263,-500.0,0.00015987,2]
[406353852,1771785039272,-500.0,0.00015987,2]
[406353853,1771785039281,-500.0,0.00015987,2]
[406353854,1771785039290,-500.0,0.00015987,2]
[406353855,1771785039300,-500.0,0.00015987,2]
[406353856,1771785039309,-629.36,0.00015987,2]
[406353857,1771785039318,-500.0,0.00015987,2]
[406353858,1771785039327,-500.0,0.00015987,2]
[406353859,1771785039337,-500.0,0.00015987,2]
[406353860,1771785039346,-500.0,0.00015987,2]
[406353861,1771785039355,-500.0,0.00015987,2]
[406353862,1771785039367,-500.0,0.00015987,2]
[406353863,1771785039377,-519.42,0.00015987,2]
[406353864,1771785039386,-500.0,0.00015987,2]
[406353865,1771785039395,-500.0,0.00015987,2]
[406353866,1771785039404,-525.13346204,0.00015987,2]
[406353867,1771785039413,-500.0,0.00015987,2]
[406353868,1771785039423,-500.0,0.00015987,2]
[406353869,1771785039431,-500.0,0.00015987,2]
[406353870,1771785039440,-500.0,0.00015987,2]
[406353871,1771785039449,-500.0,0.00015987,2]
[406353872,1771785039458,-351.64176428,0.00015987,2]
[406353873,1771785039467,-500.0,0.00015987,2]
[406353874,1771785039476,-500.0,0.00015987,2]
[406353875,1771785039485,-500.0,0.00015987,2]
[406353876,1771785039494,-500.0,0.00015987,2]
[406353877,1771785039503,-500.0,0.00015987,2]
[406353878,1771785039512,-500.0,0.00015987,2]
[406353879,1771785039521,-500.0,0.00015987,2]
[406353880,1771785039530,-500.0,0.00015987,2]
[406353881,1771785039539,-500.0,0.00015987,2]
[406353882,1771785039548,-500.0,0.00015987,2]
[406353883,1771785039557,-500.0,0.00015987,2]
[406353884,1771785039566,-500.0,0.00015987,2]
[406353885,1771785039575,-500.0,0.00015987,2]
[406353886,1771785039584,-500.0,0.00015987,2]
[406353887,1771785039593,-500.0,0.00015987,2]
[406353888,1771785039603,-500.0,0.00015987,2]
[406353889,1771785039612,-500.0,0.00015987,2]
[406353890,1771785039621,-500.0,0.00015987,2]
[406353891,1771785039630,-530.92405592,0.00015987,2]
[406353892,1771785039639,-500.0,0.00015987,2]
[406353893,1771785039648,-4084.2084,0.00015988,2]
[406353894,1771785039657,-1000.0,0.00015988,2]
[406353895,1771785039667,-500.0,0.00016087,2]
[406353896,1771785039676,-500.0,0.00016161,5]
[406353897,1771785039685,-2047.96774194,0.0001618,2]
[406353898,1771785039695,-644.07050627,0.00016186,2]
[406353899,1771785039704,-500.0,0.00016187,2]
[406353900,1771785039713,-500.0,0.00016187,2]
[406353901,1771785039723,-9455.99615417,0.000162,5]
[406353902,1771785039732,-500.0,0.00016336,2]
[406353903,1771785039741,-2047.96774194,0.00016425,2]
[406353904,1771785039750,-357.42477476,0.00016435,5]
[406353905,1771785039759,-25000.0,0.00016438,2]
[406353906,1771785039768,-1099.83327825,0.0001646,2]
[406353907,1771785039778,-644.07050627,0.00016529,2]
[406353908,1771785039788,-195.0,0.00016529,2]
[406353909,1771785039799,-250.0,0.00016529,2]
[406353910,1771785039809,-250.0,0.00016529,2]
[406353911,1771785039819,-195.0,0.00016529,2]
[406353912,1771785039831,-2047.96774194,0.00016671,2]
[406353913,1771785039841,-269.0,0.00016699,2]
[406353914,1771785039852,-196.01854357,0.000167,2]
[406353915,1771785039862,-5531.0,0.000168,5]
[406353916,1771785039872,-644.07050627,0.00016871,2]
[406353917,1771785039881,-2047.96774194,0.00016917,2]
[406353918,1771785039891,-1099.83327825,0.0001694,2]
[406353919,1771785039900,-420.0,0.00016954,2]
[406353920,1771785039911,-500.0,0.00016971,2]
[406353921,1771785039921,-150.0,0.00016995,2]
[406353922,1771785039931,-150.0,0.00016995,2]
[406353923,1771785039940,-250.90005908,0.00016995,2]
[406353924,1771785039949,-150.0,0.00016995,2]
[406353925,1771785039959,-150.0,0.00016995,2]
[406353926,1771785039969,-150.0,0.00016995,2]
[406353927,1771785039979,-32599.03879139,0.00017,2]
[406353928,1771785039989,-420.0,0.00017039,2]
[406353929,1771785039999,-150.0,0.0001705,2]
[406353930,1771785040010,-150.0,0.0001705,2]
[406353931,1771785040020,-150.0,0.0001705,2]
[406353932,1771785040030,-150.0,0.0001705,2]
[406353933,1771785040040,-150.0,0.0001705,2]
[406353934,1771785040052,-287.38563793,0.00017105,2]
[406353935,1771785040061,-150.0,0.00017105,2]
[406353936,1771785040070,-150.0,0.00017105,2]
[406353937,1771785040079,-150.0,0.00017105,2]
[406353938,1771785040091,-150.0,0.00017105,2]
[406353939,1771785040100,-1680.0,0.00017125,2]
[406353940,1771785040109,-150.0,0.00017159,2]
[406353941,1771785040119,-150.0,0.00017159,2]
[406353942,1771785040128,-150.0,0.00017159,2]
[406353943,1771785040137,-150.0,0.00017159,2]
[406353944,1771785040147,-2047.96774194,0.00017163,2]
[406353945,1771785040156,-250.0,0.00017214,2]
[406353946,1771785040165,-250.0,0.00017214,2]
[406353947,1771785040174,-250.0,0.00017214,2]
[406353948,1771785040183,-250.0,0.00017214,2]
[406353949,1771785040193,-644.07050627,0.00017214,2]
[406353950,1771785040202,-1600.0,0.00017357,2]
[406353951,1771785040212,-2047.96774194,0.00017408,2]
[406353952,1771785040221,-1099.83327825,0.0001742,2]
[406353953,1771785040230,-644.07050627,0.00017557,2]
[406353954,1771785040239,-501.62516482,0.00017573,2]
[406353955,1771785040257,-636.48823945,0.00017573,2]
[406353956,1771785040267,-206.48976748,0.00017573,2]
[406353957,1771785040278,-500.0,0.00017573,2]
[406353958,1771785040288,-175.15043052,0.00017573,2]
[406353959,1771785040298,-500.0,0.00017573,2]
[406353960,1771785040307,-500.0,0.00017573,2]
[406353961,1771785040316,-2047.96774194,0.00017654,2]
[406353962,1771785040326,-151.41,0.00017717,30]
[406353963,1771785040336,-3700.0,0.000178,6]
[406353964,1771785040345,-500.0,0.00017829,2]
[406353965,1771785040354,-281.43187,0.00017873,7]
[406353966,1771785040366,-700.0,0.000179,6]
[406353967,1771785040375,-2047.96774194,0.000179,2]
[406353968,1771785040384,-644.07050627,0.000179,2]
[406353969,1771785040394,-1099.83327825,0.000179,2]
[406353970,1771785040403,-196.01854357,0.000179,2]
[406353971,1771785040412,-161.57,0.00017975,2]
[406353972,1771785040421,-500.0,0.00017987,2]
[406353973,1771785040430,-225.18,0.00017987,2]
[406353974,1771785040439,-150.0,0.0001799,2]
[406353975,1771785040448,-150.0,0.0001799,2]
[406353976,1771785040458,-151.0,0.00017997,2]
[406353977,1771785040467,-3592212.88181784,0.00018,2]
[406353978,1771785040477,-2220.73980545,0.00018,2]
[406353979,1771785040486,-109790.91786731,0.00018,2]
[406353980,1771785040495,-2944162.21727417,0.00018,2]
[406353981,1771785040566,-5035318.43500848,0.00018,2]
[406353982,1771785040576,-151.0,0.00018,2]
[406353983,1771785040585,-1195.28363858,0.00018,2]
[406353984,1771785040595,-1001.3868342,0.00018,2]
[406353985,1771785040604,-151.0,0.00018,2]